[Event "Titled Tuesday Blitz November 29 Late 2022"]
[White "Korchmar, Vasiliy"]
[Black "Papp, Petra"]
[WhiteFideId "24131750"]
[BlackFideId "739049"]
[WhiteElo "2370"]
[BlackElo "2259"]
[Result "1-0"]
[Round "04"]
[TimeControl "180+1"]
[Date "2022.11.30"]
[WhiteClock "0:01:35"]
[BlackClock "0:00:23"]

1. e4 {[%clk 0:02:57]}  e5 {[%clk 0:02:57]} 2. Nf3 {[%clk 0:02:57]}  Nf6 {[%clk 0:02:57]} 3. Nc3 {[%clk 0:02:57]}  Nc6 {[%clk 0:02:56]} 4. h3 {[%clk 0:02:57]}  d5 {[%clk 0:02:55]} 5. exd5 {[%clk 0:02:58]}  Nxd5 {[%clk 0:02:56]} 6. Bb5 {[%clk 0:02:59]}  Nxc3 {[%clk 0:02:53]} 7. bxc3 {[%clk 0:03:00]}  Bd6 {[%clk 0:02:43]} 8. d4 {[%clk 0:03:00]}  exd4 {[%clk 0:02:41]} 9. O-O {[%clk 0:03:00]}  O-O {[%clk 0:02:41]} 10. cxd4 {[%clk 0:03:01]}  Ne7 {[%clk 0:02:38]} 11. c4 {[%clk 0:02:54]}  Ng6 {[%clk 0:02:33]} 12. Be3 {[%clk 0:02:34]}  c6 {[%clk 0:02:30]} 13. Ba4 {[%clk 0:02:34]}  Bf5 {[%clk 0:02:29]} 14. Qd2 {[%clk 0:02:21]}  Bc7 {[%clk 0:02:30]} 15. d5 {[%clk 0:02:14]}  cxd5 {[%clk 0:02:07]} 16. Qxd5 {[%clk 0:02:14]}  Be6 {[%clk 0:01:58]} 17. Qxb7 {[%clk 0:02:11]}  Rb8 {[%clk 0:01:36]} 18. Qc6 {[%clk 0:02:03]}  Ne7 {[%clk 0:01:26]} 19. Qe4 {[%clk 0:02:01]}  Nf5 {[%clk 0:01:20]} 20. Rfd1 {[%clk 0:01:57]}  Qf6 {[%clk 0:01:13]} 21. Bg5 {[%clk 0:01:45]}  Qg6 {[%clk 0:01:07]} 22. g4 {[%clk 0:01:45]}  h6 {[%clk 0:00:53]} 23. gxf5 {[%clk 0:01:45]}  Bxf5 {[%clk 0:00:53]} 24. Qc6 {[%clk 0:01:43]}  hxg5 {[%clk 0:00:35]} 25. Qxc7 {[%clk 0:01:41]}  g4 {[%clk 0:00:30]} 26. Nh4 {[%clk 0:01:42]}  Qh5 {[%clk 0:00:27]} 27. Nxf5 {[%clk 0:01:42]}  Qxf5 {[%clk 0:00:27]} 28. Bd7 {[%clk 0:01:36]}  Qe4 {[%clk 0:00:23]} 29. Bxg4 {[%clk 0:01:35]}  Qxc4 {[%clk 0:00:23]} 30. Qxc4 {[%clk 0:01:35]} 1-0


[Site "https://www.chess.com"]

[Event "Titled Tuesday Blitz November 29 Late 2022"]
[White "Korobov, Anton"]
[Black "Dardha, Daniel"]
[WhiteFideId "14105730"]
[BlackFideId "240990"]
[WhiteElo "2635"]
[BlackElo "2528"]
[Result "0-1"]
[Round "04"]
[TimeControl "180+1"]
[Date "2022.11.30"]
[WhiteClock "0:00:30"]
[BlackClock "0:00:09"]

1. d4 {[%clk 0:03:00]}  d5 {[%clk 0:02:58]} 2. c4 {[%clk 0:03:00]}  e6 {[%clk 0:02:58]} 3. Nc3 {[%clk 0:03:00]}  Be7 {[%clk 0:02:58]} 4. cxd5 {[%clk 0:02:59]}  exd5 {[%clk 0:02:59]} 5. Bf4 {[%clk 0:03:00]}  Nf6 {[%clk 0:02:59]} 6. e3 {[%clk 0:02:59]}  O-O {[%clk 0:02:59]} 7. Bd3 {[%clk 0:02:54]}  c5 {[%clk 0:02:59]} 8. h3 {[%clk 0:02:48]}  c4 {[%clk 0:02:55]} 9. Bc2 {[%clk 0:02:47]}  a6 {[%clk 0:02:54]} 10. g4 {[%clk 0:02:25]}  Be6 {[%clk 0:02:38]} 11. g5 {[%clk 0:02:08]}  Ne8 {[%clk 0:02:23]} 12. h4 {[%clk 0:02:02]}  b5 {[%clk 0:02:19]} 13. Qh5 {[%clk 0:01:51]}  f5 {[%clk 0:02:07]} 14. Nf3 {[%clk 0:01:51]}  b4 {[%clk 0:01:33]} 15. Ne2 {[%clk 0:01:50]}  Bf7 {[%clk 0:01:21]} 16. g6 {[%clk 0:01:49]}  Bxg6 {[%clk 0:01:09]} 17. Qxg6 {[%clk 0:01:47]}  hxg6 {[%clk 0:01:10]} 18. Ne5 {[%clk 0:01:48]}  Bd6 {[%clk 0:01:00]} 19. Nxg6 {[%clk 0:01:37]}  Bxf4 {[%clk 0:00:52]} 20. Nexf4 {[%clk 0:01:37]}  Rf6 {[%clk 0:00:47]} 21. O-O-O {[%clk 0:01:29]}  Nc6 {[%clk 0:00:46]} 22. h5 {[%clk 0:01:27]}  Qa5 {[%clk 0:00:44]} 23. Rdg1 {[%clk 0:01:22]}  Kh7 {[%clk 0:00:24]} 24. h6 {[%clk 0:01:01]}  gxh6 {[%clk 0:00:22]} 25. Nf8+ {[%clk 0:01:01]}  Rxf8 {[%clk 0:00:16]} 26. Rg6 {[%clk 0:01:01]}  Ng7 {[%clk 0:00:15]} 27. Rhxh6+ {[%clk 0:00:55]}  Kg8 {[%clk 0:00:15]} 28. Nh5 {[%clk 0:00:46]}  Ra7 {[%clk 0:00:12]} 29. Nf6+ {[%clk 0:00:35]}  Rxf6 {[%clk 0:00:12]} 30. Rxf6 {[%clk 0:00:36]}  Ne7 {[%clk 0:00:11]} 31. Rd6 {[%clk 0:00:33]}  b3 {[%clk 0:00:07]} 32. axb3 {[%clk 0:00:30]}  Qe1+ {[%clk 0:00:07]} 33. Bd1 {[%clk 0:00:31]}  cxb3 {[%clk 0:00:08]} 34. Rd8+ {[%clk 0:00:30]}  Kf7 {[%clk 0:00:09]} 0-1


[Site "https://www.chess.com"]

[Event "Titled Tuesday Blitz November 29 Late 2022"]
[White "Kourkoulos-Arditis, Stamatis"]
[Black "Janaszak, Dawid"]
[WhiteFideId "4221990"]
[BlackFideId "1119206"]
[WhiteElo "2429"]
[BlackElo "2226"]
[Result "0-1"]
[Round "04"]
[TimeControl "180+1"]
[Date "2022.11.30"]
[WhiteClock "0:00:05"]
[BlackClock "0:00:45"]

1. d4 {[%clk 0:03:00]}  Nf6 {[%clk 0:02:59]} 2. c4 {[%clk 0:03:01]}  g6 {[%clk 0:02:59]} 3. Nc3 {[%clk 0:03:00]}  Bg7 {[%clk 0:02:59]} 4. e4 {[%clk 0:03:00]}  d6 {[%clk 0:03:00]} 5. Nf3 {[%clk 0:03:00]}  O-O {[%clk 0:02:59]} 6. Be2 {[%clk 0:03:01]}  c5 {[%clk 0:02:57]} 7. O-O {[%clk 0:02:58]}  cxd4 {[%clk 0:02:57]} 8. Nxd4 {[%clk 0:02:59]}  Nc6 {[%clk 0:02:58]} 9. Be3 {[%clk 0:02:58]}  Bd7 {[%clk 0:02:57]} 10. f3 {[%clk 0:02:55]}  Nxd4 {[%clk 0:02:56]} 11. Bxd4 {[%clk 0:02:56]}  Bc6 {[%clk 0:02:57]} 12. b4 {[%clk 0:02:56]}  a5 {[%clk 0:02:38]} 13. b5 {[%clk 0:02:53]}  Bd7 {[%clk 0:02:37]} 14. Qd2 {[%clk 0:02:27]}  Be6 {[%clk 0:02:30]} 15. Na4 {[%clk 0:02:12]}  Nd7 {[%clk 0:02:20]} 16. Bxg7 {[%clk 0:02:11]}  Kxg7 {[%clk 0:02:21]} 17. f4 {[%clk 0:02:02]}  f6 {[%clk 0:02:21]} 18. Rac1 {[%clk 0:01:52]}  Rc8 {[%clk 0:02:20]} 19. Rc3 {[%clk 0:01:24]}  Bf7 {[%clk 0:02:16]} 20. Rfc1 {[%clk 0:01:17]}  Nc5 {[%clk 0:02:14]} 21. Nxc5 {[%clk 0:01:13]}  Rxc5 {[%clk 0:02:15]} 22. Kh1 {[%clk 0:01:09]}  Qd7 {[%clk 0:02:06]} 23. Rh3 {[%clk 0:01:03]}  Rfc8 {[%clk 0:01:54]} 24. f5 {[%clk 0:00:47]}  g5 {[%clk 0:01:50]} 25. Rhc3 {[%clk 0:00:46]}  b6 {[%clk 0:01:47]} 26. h4 {[%clk 0:00:33]}  h6 {[%clk 0:01:47]} 27. Qd4 {[%clk 0:00:27]}  Qc7 {[%clk 0:01:40]} 28. a3 {[%clk 0:00:21]}  Re5 {[%clk 0:01:39]} 29. Kg1 {[%clk 0:00:17]}  Qb7 {[%clk 0:01:34]} 30. Bf3 {[%clk 0:00:15]}  g4 {[%clk 0:01:34]} 31. Bxg4 {[%clk 0:00:14]}  Rxe4 {[%clk 0:01:34]} 32. Qd1 {[%clk 0:00:14]}  Qc7 {[%clk 0:01:28]} 33. Bf3 {[%clk 0:00:09]}  Qc5+ {[%clk 0:01:28]} 34. Kh2 {[%clk 0:00:07]}  Rxh4+ {[%clk 0:01:14]} 35. Kg3 {[%clk 0:00:07]}  Rd4 {[%clk 0:01:15]} 36. Qe2 {[%clk 0:00:06]}  Qe5+ {[%clk 0:01:12]} 37. Qxe5 {[%clk 0:00:06]}  dxe5 {[%clk 0:01:13]} 38. Kf2 {[%clk 0:00:04]}  Rc5 {[%clk 0:01:10]} 39. Be2 {[%clk 0:00:04]}  Rf4+ {[%clk 0:01:10]} 40. Ke3 {[%clk 0:00:04]}  Rxf5 {[%clk 0:01:10]} 41. Bf3 {[%clk 0:00:03]}  Rg5 {[%clk 0:01:08]} 42. a4 {[%clk 0:00:03]}  f5 {[%clk 0:01:08]} 43. Rd1 {[%clk 0:00:03]}  e4 {[%clk 0:01:05]} 44. Be2 {[%clk 0:00:04]}  Rxg2 {[%clk 0:01:04]} 45. Rd7 {[%clk 0:00:04]}  Rg3+ {[%clk 0:01:02]} 46. Kd4 {[%clk 0:00:04]}  Rxc3 {[%clk 0:01:02]} 47. Kxc3 {[%clk 0:00:05]}  Kf6 {[%clk 0:00:59]} 48. Rb7 {[%clk 0:00:04]}  f4 {[%clk 0:00:56]} 49. Kd4 {[%clk 0:00:04]}  e5+ {[%clk 0:00:48]} 50. Kc3 {[%clk 0:00:04]}  f3 {[%clk 0:00:46]} 51. Rxb6+ {[%clk 0:00:04]}  Kg5 {[%clk 0:00:46]} 52. Bf1 {[%clk 0:00:04]}  e3 {[%clk 0:00:47]} 53. Rb7 {[%clk 0:00:04]}  e2 {[%clk 0:00:46]} 54. Bxe2 {[%clk 0:00:04]}  fxe2 {[%clk 0:00:46]} 55. Kd2 {[%clk 0:00:05]}  Bxc4 {[%clk 0:00:45]} 56. Rb8 {[%clk 0:00:05]}  Rd5+ {[%clk 0:00:45]} 0-1


[Site "https://www.chess.com"]

[Event "Titled Tuesday Blitz November 29 Late 2022"]
[White "Kowalski, Igor"]
[Black "Adla, Diego"]
[WhiteFideId "1172468"]
[BlackFideId "100072"]
[WhiteElo "2317"]
[BlackElo "2377"]
[Result "1/2-1/2"]
[Round "04"]
[TimeControl "180+1"]
[Date "2022.11.30"]
[WhiteClock "0:00:21"]
[BlackClock "0:00:52"]

1. d4 {[%clk 0:03:00]}  Nf6 {[%clk 0:02:59]} 2. Nf3 {[%clk 0:03:00]}  d5 {[%clk 0:02:59]} 3. c4 {[%clk 0:03:00]}  e6 {[%clk 0:02:59]} 4. g3 {[%clk 0:03:01]}  Be7 {[%clk 0:02:58]} 5. Bg2 {[%clk 0:03:02]}  O-O {[%clk 0:02:58]} 6. O-O {[%clk 0:03:02]}  dxc4 {[%clk 0:02:58]} 7. Qc2 {[%clk 0:03:02]}  b5 {[%clk 0:02:57]} 8. a4 {[%clk 0:03:01]}  Bb7 {[%clk 0:02:57]} 9. axb5 {[%clk 0:03:01]}  a6 {[%clk 0:02:57]} 10. bxa6 {[%clk 0:03:00]}  Nxa6 {[%clk 0:02:54]} 11. Qxc4 {[%clk 0:03:00]}  Bd5 {[%clk 0:02:54]} 12. Qd3 {[%clk 0:03:00]}  Nb4 {[%clk 0:02:52]} 13. Rxa8 {[%clk 0:03:00]}  Qxa8 {[%clk 0:02:53]} 14. Qd1 {[%clk 0:02:50]}  c5 {[%clk 0:02:43]} 15. Nc3 {[%clk 0:02:47]}  Bb7 {[%clk 0:02:41]} 16. dxc5 {[%clk 0:02:41]}  Bxc5 {[%clk 0:02:41]} 17. Qb3 {[%clk 0:02:41]}  Rd8 {[%clk 0:02:35]} 18. Bg5 {[%clk 0:02:39]}  Nbd5 {[%clk 0:02:29]} 19. Nxd5 {[%clk 0:01:55]}  Bxd5 {[%clk 0:02:29]} 20. Qc2 {[%clk 0:01:53]}  Be7 {[%clk 0:02:25]} 21. Rd1 {[%clk 0:01:50]}  Rb8 {[%clk 0:02:25]} 22. Ne1 {[%clk 0:01:47]}  Bxg2 {[%clk 0:02:23]} 23. Nxg2 {[%clk 0:01:48]}  h6 {[%clk 0:02:22]} 24. Bf4 {[%clk 0:01:47]}  Rc8 {[%clk 0:02:18]} 25. Qd3 {[%clk 0:01:43]}  Nd5 {[%clk 0:02:18]} 26. Bd2 {[%clk 0:01:41]}  Qb7 {[%clk 0:02:13]} 27. b3 {[%clk 0:01:39]}  Bb4 {[%clk 0:02:09]} 28. e4 {[%clk 0:01:37]}  Nf6 {[%clk 0:01:54]} 29. f3 {[%clk 0:01:28]}  Bxd2 {[%clk 0:01:51]} 30. Rxd2 {[%clk 0:01:27]}  Qb6+ {[%clk 0:01:43]} 31. Qe3 {[%clk 0:01:11]}  Qxe3+ {[%clk 0:01:41]} 32. Nxe3 {[%clk 0:01:12]}  Rc3 {[%clk 0:01:40]} 33. Kf2 {[%clk 0:01:13]}  Rxb3 {[%clk 0:01:40]} 34. Rd8+ {[%clk 0:01:12]}  Kh7 {[%clk 0:01:40]} 35. e5 {[%clk 0:01:13]}  Ng8 {[%clk 0:01:34]} 36. Rd7 {[%clk 0:01:10]}  Kg6 {[%clk 0:01:29]} 37. f4 {[%clk 0:01:11]}  Rb4 {[%clk 0:01:23]} 38. Kf3 {[%clk 0:00:54]}  h5 {[%clk 0:01:23]} 39. Ng2 {[%clk 0:00:54]}  Nh6 {[%clk 0:01:22]} 40. Nh4+ {[%clk 0:00:54]}  Kh7 {[%clk 0:01:21]} 41. h3 {[%clk 0:00:51]}  Rb3+ {[%clk 0:01:19]} 42. Kf2 {[%clk 0:00:52]}  Rb2+ {[%clk 0:01:19]} 43. Ke3 {[%clk 0:00:52]}  Rb3+ {[%clk 0:01:19]} 44. Rd3 {[%clk 0:00:52]}  Rxd3+ {[%clk 0:01:17]} 45. Kxd3 {[%clk 0:00:53]}  g6 {[%clk 0:01:17]} 46. Ke4 {[%clk 0:00:52]}  Kg7 {[%clk 0:01:17]} 47. Nf3 {[%clk 0:00:52]}  Nf5 {[%clk 0:01:17]} 48. g4 {[%clk 0:00:53]}  hxg4 {[%clk 0:01:16]} 49. hxg4 {[%clk 0:00:54]}  Ne7 {[%clk 0:01:16]} 50. Nd4 {[%clk 0:00:53]}  Nc8 {[%clk 0:01:08]} 51. Nb5 {[%clk 0:00:50]}  Nb6 {[%clk 0:01:05]} 52. Nd6 {[%clk 0:00:51]}  Kf8 {[%clk 0:01:03]} 53. Kd4 {[%clk 0:00:50]}  Ke7 {[%clk 0:01:03]} 54. Nc4 {[%clk 0:00:39]}  Nd7 {[%clk 0:01:00]} 55. Na5 {[%clk 0:00:24]}  Nb6 {[%clk 0:00:58]} 56. Nc6+ {[%clk 0:00:24]}  Kd7 {[%clk 0:00:58]} 57. Nb4 {[%clk 0:00:24]}  Ke7 {[%clk 0:00:53]} 58. Kc5 {[%clk 0:00:24]}  Nd7+ {[%clk 0:00:52]} 59. Kd4 {[%clk 0:00:21]}  Nb6 {[%clk 0:00:52]} 60. Kc5 {[%clk 0:00:21]}  Nd7+ {[%clk 0:00:52]} 61. Kd4 {[%clk 0:00:21]}  Nb6 {[%clk 0:00:52]} 1/2-1/2


[Site "https://www.chess.com"]

[Event "Titled Tuesday Blitz November 29 Late 2022"]
[White "Leebit02"]
[Black "Urbina Perez, Juan Antonio"]
[BlackFideId "2217368"]
[WhiteElo "2308"]
[BlackElo "2197"]
[Result "0-1"]
[Round "04"]
[TimeControl "180+1"]
[Date "2022.11.30"]
[WhiteClock "0:00:24"]
[BlackClock "0:00:52"]

1. e4 {[%clk 0:03:00]}  e5 {[%clk 0:02:58]} 2. Nf3 {[%clk 0:03:00]}  Nc6 {[%clk 0:02:58]} 3. Bb5 {[%clk 0:02:57]}  a6 {[%clk 0:02:59]} 4. Ba4 {[%clk 0:02:58]}  Nge7 {[%clk 0:02:58]} 5. O-O {[%clk 0:02:53]}  g6 {[%clk 0:02:58]} 6. c3 {[%clk 0:02:51]}  Bg7 {[%clk 0:02:54]} 7. d4 {[%clk 0:02:52]}  O-O {[%clk 0:02:51]} 8. d5 {[%clk 0:02:46]}  b5 {[%clk 0:02:46]} 9. Bc2 {[%clk 0:02:44]}  Na5 {[%clk 0:02:43]} 10. a4 {[%clk 0:02:28]}  Bb7 {[%clk 0:02:34]} 11. Nbd2 {[%clk 0:02:22]}  d6 {[%clk 0:02:29]} 12. b4 {[%clk 0:02:21]}  Nc4 {[%clk 0:02:29]} 13. Nxc4 {[%clk 0:02:21]}  bxc4 {[%clk 0:02:30]} 14. Qe2 {[%clk 0:02:18]}  c6 {[%clk 0:02:30]} 15. dxc6 {[%clk 0:02:18]}  Nxc6 {[%clk 0:02:22]} 16. Qxc4 {[%clk 0:02:16]}  Rc8 {[%clk 0:02:22]} 17. Qe2 {[%clk 0:02:09]}  Qc7 {[%clk 0:02:19]} 18. Bd2 {[%clk 0:01:59]}  Nxb4 {[%clk 0:02:14]} 19. Bb3 {[%clk 0:01:35]}  Nc6 {[%clk 0:02:05]} 20. Bd5 {[%clk 0:01:32]}  Na5 {[%clk 0:02:01]} 21. Bxb7 {[%clk 0:01:15]}  Qxb7 {[%clk 0:02:02]} 22. Rfb1 {[%clk 0:01:12]}  Qa8 {[%clk 0:02:02]} 23. Rb4 {[%clk 0:01:10]}  d5 {[%clk 0:01:33]} 24. h4 {[%clk 0:01:06]}  dxe4 {[%clk 0:01:31]} 25. Rxe4 {[%clk 0:01:06]}  Nb3 {[%clk 0:01:28]} 26. Re1 {[%clk 0:00:56]}  Nxd2 {[%clk 0:01:27]} 27. Nxd2 {[%clk 0:00:57]}  Qc6 {[%clk 0:01:25]} 28. h5 {[%clk 0:00:56]}  Qxc3 {[%clk 0:01:21]} 29. hxg6 {[%clk 0:00:42]}  hxg6 {[%clk 0:01:22]} 30. Re3 {[%clk 0:00:38]}  Qa5 {[%clk 0:01:16]} 31. Nc4 {[%clk 0:00:27]}  Qb4 {[%clk 0:01:01]} 32. Nxe5 {[%clk 0:00:26]}  Qxa4 {[%clk 0:00:59]} 33. Nd7 {[%clk 0:00:24]}  Qxd7 {[%clk 0:00:52]} 0-1


[Site "https://www.chess.com"]

[Event "Titled Tuesday Blitz November 29 Late 2022"]
[White "Lopez Perdomo, Juan David"]
[Black "Mickiewicz, Piotr"]
[WhiteFideId "4405137"]
[BlackFideId "1114891"]
[WhiteElo "1965"]
[BlackElo "2246"]
[Result "0-1"]
[Round "04"]
[TimeControl "180+1"]
[Date "2022.11.30"]
[WhiteClock "0:00:01"]
[BlackClock "0:00:10"]

1. e4 {[%clk 0:03:00]}  c5 {[%clk 0:02:59]} 2. d4 {[%clk 0:02:59]}  cxd4 {[%clk 0:02:59]} 3. c3 {[%clk 0:03:00]}  dxc3 {[%clk 0:02:59]} 4. Nxc3 {[%clk 0:02:53]}  Nc6 {[%clk 0:02:57]} 5. Nf3 {[%clk 0:02:54]}  e6 {[%clk 0:02:56]} 6. Bc4 {[%clk 0:02:54]}  Nge7 {[%clk 0:02:55]} 7. Bg5 {[%clk 0:02:52]}  f6 {[%clk 0:02:54]} 8. Bh4 {[%clk 0:02:52]}  Ng6 {[%clk 0:02:53]} 9. Bg3 {[%clk 0:02:52]}  a6 {[%clk 0:02:47]} 10. O-O {[%clk 0:02:52]}  b5 {[%clk 0:02:47]} 11. Bb3 {[%clk 0:02:52]}  Bb7 {[%clk 0:02:46]} 12. Qe2 {[%clk 0:02:52]}  Be7 {[%clk 0:02:31]} 13. Rfd1 {[%clk 0:02:52]}  Qb6 {[%clk 0:02:03]} 14. Bd6 {[%clk 0:02:49]}  Rd8 {[%clk 0:01:55]} 15. a4 {[%clk 0:02:28]}  b4 {[%clk 0:01:45]} 16. a5 {[%clk 0:02:28]}  Nxa5 {[%clk 0:01:41]} 17. Na4 {[%clk 0:02:28]}  Qc6 {[%clk 0:01:28]} 18. Rac1 {[%clk 0:01:46]}  Qxe4 {[%clk 0:01:25]} 19. Qxe4 {[%clk 0:01:46]}  Bxe4 {[%clk 0:01:25]} 20. Bc7 {[%clk 0:01:47]}  Nxb3 {[%clk 0:01:20]} 21. Rc4 {[%clk 0:01:38]}  Bxf3 {[%clk 0:01:08]} 22. gxf3 {[%clk 0:01:36]}  d5 {[%clk 0:01:09]} 23. Rc6 {[%clk 0:01:32]}  Kd7 {[%clk 0:01:00]} 24. Rc2 {[%clk 0:01:25]}  Rdg8 {[%clk 0:00:15]} 25. Rd3 {[%clk 0:01:25]}  Nc5 {[%clk 0:00:10]} 26. Nxc5+ {[%clk 0:01:06]}  Bxc5 {[%clk 0:00:11]} 27. Rxc5 {[%clk 0:01:05]}  Rc8 {[%clk 0:00:12]} 28. Bb6 {[%clk 0:01:04]}  Ne5 {[%clk 0:00:11]} 29. Rxc8 {[%clk 0:00:49]}  Rxc8 {[%clk 0:00:12]} 30. Rb3 {[%clk 0:00:49]}  Nc6 {[%clk 0:00:12]} 31. f4 {[%clk 0:00:41]}  a5 {[%clk 0:00:12]} 32. Rg3 {[%clk 0:00:35]}  Rg8 {[%clk 0:00:11]} 33. b3 {[%clk 0:00:33]}  h6 {[%clk 0:00:10]} 34. Kf1 {[%clk 0:00:31]}  e5 {[%clk 0:00:10]} 35. fxe5 {[%clk 0:00:21]}  fxe5 {[%clk 0:00:11]} 36. Ke2 {[%clk 0:00:18]}  Ne7 {[%clk 0:00:09]} 37. Bxa5 {[%clk 0:00:16]}  Nf5 {[%clk 0:00:10]} 38. Rd3 {[%clk 0:00:13]}  Ke6 {[%clk 0:00:09]} 39. Bxb4 {[%clk 0:00:14]}  Rb8 {[%clk 0:00:09]} 40. Bd2 {[%clk 0:00:09]}  d4 {[%clk 0:00:09]} 41. f3 {[%clk 0:00:08]}  Kd5 {[%clk 0:00:09]} 42. b4 {[%clk 0:00:08]}  g5 {[%clk 0:00:09]} 43. Ra3 {[%clk 0:00:08]}  Nd6 {[%clk 0:00:10]} 44. Ra5+ {[%clk 0:00:08]}  Ke6 {[%clk 0:00:10]} 45. h4 {[%clk 0:00:05]}  Kf5 {[%clk 0:00:09]} 46. hxg5 {[%clk 0:00:05]}  hxg5 {[%clk 0:00:10]} 47. Ra6 {[%clk 0:00:05]}  Nc4 {[%clk 0:00:10]} 48. Be1 {[%clk 0:00:04]}  g4 {[%clk 0:00:10]} 49. Rc6 {[%clk 0:00:04]}  Na3 {[%clk 0:00:06]} 50. fxg4+ {[%clk 0:00:04]}  Kxg4 {[%clk 0:00:07]} 51. Rg6+ {[%clk 0:00:03]}  Kf5 {[%clk 0:00:07]} 52. Rh6 {[%clk 0:00:03]}  Ke4 {[%clk 0:00:08]} 53. Rh5 {[%clk 0:00:04]}  Nc4 {[%clk 0:00:07]} 54. Rh4+ {[%clk 0:00:04]}  Kd5 {[%clk 0:00:05]} 55. Rh5 {[%clk 0:00:04]}  Ra8 {[%clk 0:00:05]} 56. Bg3 {[%clk 0:00:04]}  Ra2+ {[%clk 0:00:06]} 57. Kd1 {[%clk 0:00:04]}  Ra3 {[%clk 0:00:07]} 58. Bf2 {[%clk 0:00:03]}  Rd3+ {[%clk 0:00:07]} 59. Kc1 {[%clk 0:00:03]}  Rc3+ {[%clk 0:00:08]} 60. Kd1 {[%clk 0:00:02]}  Rb3 {[%clk 0:00:09]} 61. Be1 {[%clk 0:00:02]}  Ne3+ {[%clk 0:00:09]} 62. Kc1 {[%clk 0:00:02]}  Nc4 {[%clk 0:00:09]} 63. Rh8 {[%clk 0:00:02]}  d3 {[%clk 0:00:09]} 64. Rd8+ {[%clk 0:00:01]}  Ke4 {[%clk 0:00:10]} 0-1


[Site "https://www.chess.com"]

[Event "Titled Tuesday Blitz November 29 Late 2022"]
[White "Marcolino, Daniel Mattos"]
[Black "Clawitter, Craig"]
[WhiteFideId "2106841"]
[BlackFideId "2023105"]
[WhiteElo "2108"]
[BlackElo "2274"]
[Result "1-0"]
[Round "04"]
[TimeControl "180+1"]
[Date "2022.11.30"]
[WhiteClock "0:00:06"]
[BlackClock "0:00:01"]

1. d4 {[%clk 0:03:00]}  e6 {[%clk 0:02:59]} 2. Nf3 {[%clk 0:03:01]}  Nf6 {[%clk 0:02:59]} 3. g3 {[%clk 0:03:02]}  d5 {[%clk 0:02:59]} 4. Bg2 {[%clk 0:03:02]}  Be7 {[%clk 0:03:00]} 5. O-O {[%clk 0:03:03]}  O-O {[%clk 0:03:00]} 6. c4 {[%clk 0:03:03]}  dxc4 {[%clk 0:03:01]} 7. Qc2 {[%clk 0:03:03]}  a6 {[%clk 0:03:01]} 8. a4 {[%clk 0:03:04]}  Bd7 {[%clk 0:03:00]} 9. Qxc4 {[%clk 0:03:04]}  Bc6 {[%clk 0:03:00]} 10. Bg5 {[%clk 0:03:04]}  Nbd7 {[%clk 0:02:59]} 11. Nc3 {[%clk 0:03:01]}  a5 {[%clk 0:02:53]} 12. Rfe1 {[%clk 0:02:52]}  Nb6 {[%clk 0:02:48]} 13. Qb3 {[%clk 0:02:51]}  Ne4 {[%clk 0:02:39]} 14. Bxe7 {[%clk 0:02:46]}  Qxe7 {[%clk 0:02:37]} 15. Ne5 {[%clk 0:02:42]}  Nxc3 {[%clk 0:02:02]} 16. Nxc6 {[%clk 0:02:33]}  Nxe2+ {[%clk 0:01:58]} 17. Rxe2 {[%clk 0:02:34]}  bxc6 {[%clk 0:01:58]} 18. Bxc6 {[%clk 0:02:32]}  Rab8 {[%clk 0:01:57]} 19. Qc2 {[%clk 0:02:20]}  Rfd8 {[%clk 0:01:51]} 20. Rd1 {[%clk 0:02:06]}  Nd5 {[%clk 0:01:49]} 21. Bxd5 {[%clk 0:01:50]}  Rxd5 {[%clk 0:01:48]} 22. Re3 {[%clk 0:01:38]}  h5 {[%clk 0:01:35]} 23. Rc3 {[%clk 0:01:35]}  Qb4 {[%clk 0:01:30]} 24. Rxc7 {[%clk 0:00:50]}  Rxd4 {[%clk 0:01:04]} 25. Rxd4 {[%clk 0:00:44]}  Qxd4 {[%clk 0:01:03]} 26. Rc8+ {[%clk 0:00:45]}  Rxc8 {[%clk 0:01:03]} 27. Qxc8+ {[%clk 0:00:45]}  Kh7 {[%clk 0:01:03]} 28. Qe8 {[%clk 0:00:20]}  Qd1+ {[%clk 0:00:40]} 29. Kg2 {[%clk 0:00:19]}  Qd5+ {[%clk 0:00:40]} 30. Kg1 {[%clk 0:00:19]}  e5 {[%clk 0:00:41]} 31. Qb5 {[%clk 0:00:17]}  Qd4 {[%clk 0:00:32]} 32. Qxa5 {[%clk 0:00:16]}  Qxb2 {[%clk 0:00:31]} 33. Qb5 {[%clk 0:00:15]}  Qa1+ {[%clk 0:00:24]} 34. Kg2 {[%clk 0:00:15]}  g6 {[%clk 0:00:22]} 35. a5 {[%clk 0:00:16]}  e4 {[%clk 0:00:15]} 36. a6 {[%clk 0:00:15]}  Qd1 {[%clk 0:00:12]} 37. Qc4 {[%clk 0:00:11]}  Qf3+ {[%clk 0:00:12]} 38. Kg1 {[%clk 0:00:11]}  Qd1+ {[%clk 0:00:05]} 39. Qf1 {[%clk 0:00:11]}  Qa4 {[%clk 0:00:05]} 40. Qe2 {[%clk 0:00:11]}  f5 {[%clk 0:00:04]} 41. Kg2 {[%clk 0:00:11]}  Qa3 {[%clk 0:00:03]} 42. h4 {[%clk 0:00:10]}  Kg7 {[%clk 0:00:03]} 43. Qc4 {[%clk 0:00:09]}  Kh6 {[%clk 0:00:02]} 44. Qc2 {[%clk 0:00:07]}  Qf3+ {[%clk 0:00:01]} 45. Kg1 {[%clk 0:00:06]}  Qa3 {[%clk 0:00:01]} 46. Qe2 {[%clk 0:00:06]} 1-0


[Site "https://www.chess.com"]

[Event "Titled Tuesday Blitz November 29 Late 2022"]
[White "Milosevic, Milos"]
[Black "Sanchez, Robert"]
[WhiteFideId "964875"]
[BlackFideId "2034360"]
[WhiteElo "2321"]
[BlackElo "2325"]
[Result "1-0"]
[Round "04"]
[TimeControl "180+1"]
[Date "2022.11.30"]
[WhiteClock "0:00:41"]
[BlackClock "0:00:19"]

1. e4 {[%clk 0:03:00]}  e6 {[%clk 0:02:57]} 2. d4 {[%clk 0:02:59]}  d5 {[%clk 0:02:57]} 3. Nc3 {[%clk 0:03:00]}  Nf6 {[%clk 0:02:57]} 4. e5 {[%clk 0:03:00]}  Nfd7 {[%clk 0:02:58]} 5. f4 {[%clk 0:03:01]}  c5 {[%clk 0:02:58]} 6. Nf3 {[%clk 0:03:00]}  Nc6 {[%clk 0:02:58]} 7. Be3 {[%clk 0:03:00]}  Be7 {[%clk 0:02:58]} 8. a3 {[%clk 0:03:00]}  a6 {[%clk 0:02:53]} 9. dxc5 {[%clk 0:02:52]}  Nxc5 {[%clk 0:02:53]} 10. b4 {[%clk 0:02:51]}  Nd7 {[%clk 0:02:50]} 11. Bd3 {[%clk 0:02:51]}  f6 {[%clk 0:02:43]} 12. O-O {[%clk 0:02:49]}  O-O {[%clk 0:02:42]} 13. Nd4 {[%clk 0:01:50]}  Nxd4 {[%clk 0:02:22]} 14. Bxd4 {[%clk 0:01:51]}  f5 {[%clk 0:02:20]} 15. g4 {[%clk 0:01:46]}  Nb6 {[%clk 0:02:18]} 16. Kh1 {[%clk 0:01:42]}  Bd7 {[%clk 0:01:52]} 17. Rg1 {[%clk 0:01:39]}  Rf7 {[%clk 0:01:34]} 18. Qf3 {[%clk 0:01:34]}  Rc8 {[%clk 0:01:25]} 19. Ne2 {[%clk 0:01:28]}  Bb5 {[%clk 0:01:17]} 20. Qf2 {[%clk 0:01:14]}  Na4 {[%clk 0:01:14]} 21. Rg3 {[%clk 0:01:08]}  Bxd3 {[%clk 0:01:13]} 22. cxd3 {[%clk 0:01:07]}  Rc2 {[%clk 0:01:04]} 23. Rag1 {[%clk 0:01:07]}  Bf8 {[%clk 0:00:50]} 24. Qf3 {[%clk 0:01:00]}  g6 {[%clk 0:00:25]} 25. Bf2 {[%clk 0:00:45]}  Nc3 {[%clk 0:00:21]} 26. Nd4 {[%clk 0:00:43]}  Rxf2 {[%clk 0:00:18]} 27. Qxf2 {[%clk 0:00:42]}  Qd7 {[%clk 0:00:19]} 28. gxf5 {[%clk 0:00:41]}  exf5 {[%clk 0:00:19]} 29. e6 {[%clk 0:00:41]} 1-0


[Site "https://www.chess.com"]